Workbook

Sheet H26.4
B1: 行政区別の世帯数と人口
G2: (平成26年 | H2: 4月末日現在)
B4: 校区 | C4: 区名 | D4: 世帯数 | E4: 人口
E5: 男 | F5: 女 | G5: 全体
B6: 腹赤 | C6: 平原 | D6: 335 | E6: 372 | F6: 362 | G6: =SUM(E6:F6) -> 734
C7: 清源寺 | D7: 648 | E7: 784 | F7: 698 | G7: =SUM(E7:F7) -> 1482
C8: 上沖洲 | D8: 306 | E8: 377 | F8: 399 | G8: 776
C9: 腹赤 | D9: 336 | E9: 440 | F9: 488 | G9: 928
C10: 腹赤新町 | D10: 90 | E10: 110 | F10: 118 | G10: 228
C11: 校区合計 | D11: =SUM(D6:D10) -> 1715 | E11: =SUM(E6:E10) -> 2083 | F11: =SUM(F6:F10) -> 2065 | G11: =SUM(G6:G10) -> 4148
B12: 六栄 | C12: 折地 | D12: 187 | E12: 221 | F12: 259 | G12: =SUM(E12:F12) -> 480
C13: 赤崎 | D13: 131 | E13: 174 | F13: 190 | G13: =SUM(E13:F13) -> 364
C14: 高田 | D14: 57 | E14: 85 | F14: 88 | G14: 173
C15: 鷲巣 | D15: 216 | E15: 273 | F15: 265 | G15: 538
C16: 立野 | D16: 174 | E16: 187 | F16: 198 | G16: 385
C17: 向野 | D17: 354 | E17: 440 | F17: 463 | G17: 903
C18: 宮崎 | D18: 139 | E18: 191 | F18: 210 | G18: 401
C19: 赤田 | D19: 98 | E19: 113 | F19: 126 | G19: 239
C20: 葛輪 | D20: 75 | E20: 91 | F20: 104 | G20: 195
C21: 永方 | D21: 109 | E21: 102 | F21: 147 | G21: 249
C22: 塩屋 | D22: 92 | E22: 100 | F22: 121 | G22: 221
C23: 向野北 | D23: 187 | E23: 280 | F23: 204 | G23: 484
C24: 古城 | D24: 242 | E24: 303 | F24: 337 | G24: 640
C25: 校区合計 | D25: =SUM(D12:D24) -> 2061 | E25: =SUM(E12:E24) -> 2560 | F25: =SUM(F12:F24) -> 2712 | G25: =SUM(G12:G24) -> 5272
B26: 清里 | C26: 建浜 | D26: 274 | E26: 356 | F26: 386 | G26: =SUM(E26:F26) -> 742
C27: 駅通 | D27: 125 | E27: 152 | F27: 138 | G27: =SUM(E27:F27) -> 290
C28: 梅田 | D28: 264 | E28: 309 | F28: 325 | G28: 634
C29: 校区合計 | D29: =SUM(D26:D28) -> 663 | E29: =SUM(E26:E28) -> 817 | F29: =SUM(F26:F28) -> 849 | G29: =SUM(G26:G28) -> 1666
B30: 長洲 | C30: 出町 | D30: 217 | E30: 245 | F30: 268 | G30: =SUM(E30:F30) -> 513
C31: 新町 | D31: 137 | E31: 161 | F31: 168 | G31: =SUM(E31:F31) -> 329
C32: 西新町 | D32: 38 | E32: 31 | F32: 43 | G32: 74
C33: 宮ノ町 | D33: 127 | E33: 157 | F33: 156 | G33: 313
C34: 松原 | D34: 112 | E34: 114 | F34: 123 | G34: 237
C35: 新山 | D35: 296 | E35: 315 | F35: 364 | G35: 679
C36: 宝町 | D36: 149 | E36: 137 | F36: 154 | G36: 291
C37: 磯町 | D37: 111 | E37: 110 | F37: 134 | G37: 244
C38: 上町 | D38: 69 | E38: 72 | F38: 89 | G38: 161
C39: 中町 | D39: 59 | E39: 67 | F39: 71 | G39: 138
C40: 下本 | D40: 40 | E40: 40 | F40: 57 | G40: 97
C41: 今町 | D41: 47 | E41: 50 | F41: 66 | G41: 116
C42: 下東 | D42: 250 | E42: 299 | F42: 330 | G42: 629
C43: 西荒神 | D43: 66 | E43: 69 | F43: 73 | G43: 142
C44: 東荒神 | D44: 354 | E44: 399 | F44: 462 | G44: 861
C45: 大明神 | D45: 258 | E45: 320 | F45: 322 | G45: 642
C46: 校区合計 | D46: =SUM(D30:D45) -> 2330 | E46: =SUM(E30:E45) -> 2586 | F46: =SUM(F30:F45) -> 2880 | G46: =SUM(G30:G45) -> 5466
B48: 全体 | C48: =D11+D25+D29+D46 -> 6769 | E48: =G11++G25+G29+G46 -> 16552 | G48: =E11+E25+E29+E46 -> 8046 | H48: =F11+F25+F29+F46 -> 8506
D49: （世帯数） | F49: （人口） | G49: （男） | H49: （女）

Sheet H26.5
B1: 行政区別の世帯数と人口
G2: (平成26年 | H2: 5月末日現在)
B4: 校区 | C4: 区名 | D4: 世帯数 | E4: 人口
E5: 男 | F5: 女 | G5: 全体
B6: 腹赤 | C6: 平原 | D6: 339 | E6: 376 | F6: 364 | G6: =SUM(E6:F6) -> 740
C7: 清源寺 | D7: 645 | E7: 782 | F7: 696 | G7: =SUM(E7:F7) -> 1478
C8: 上沖洲 | D8: 306 | E8: 374 | F8: 397 | G8: 771
C9: 腹赤 | D9: 335 | E9: 440 | F9: 488 | G9: 928
C10: 腹赤新町 | D10: 91 | E10: 111 | F10: 118 | G10: 229
C11: 校区合計 | D11: =SUM(D6:D10) -> 1716 | E11: =SUM(E6:E10) -> 2083 | F11: =SUM(F6:F10) -> 2063 | G11: =SUM(G6:G10) -> 4146
B12: 六栄 | C12: 折地 | D12: 187 | E12: 221 | F12: 259 | G12: =SUM(E12:F12) -> 480
C13: 赤崎 | D13: 131 | E13: 173 | F13: 190 | G13: =SUM(E13:F13) -> 363
C14: 高田 | D14: 57 | E14: 84 | F14: 88 | G14: 172
C15: 鷲巣 | D15: 217 | E15: 274 | F15: 265 | G15: 539
C16: 立野 | D16: 174 | E16: 187 | F16: 197 | G16: 384
C17: 向野 | D17: 354 | E17: 436 | F17: 463 | G17: 899
C18: 宮崎 | D18: 138 | E18: 189 | F18: 207 | G18: 396
C19: 赤田 | D19: 97 | E19: 113 | F19: 125 | G19: 238
C20: 葛輪 | D20: 75 | E20: 91 | F20: 104 | G20: 195
C21: 永方 | D21: 109 | E21: 102 | F21: 145 | G21: 247
C22: 塩屋 | D22: 92 | E22: 100 | F22: 120 | G22: 220
C23: 向野北 | D23: 187 | E23: 278 | F23: 206 | G23: 484
C24: 古城 | D24: 244 | E24: 309 | F24: 340 | G24: 649
C25: 校区合計 | D25: =SUM(D12:D24) -> 2062 | E25: =SUM(E12:E24) -> 2557 | F25: =SUM(F12:F24) -> 2709 | G25: =SUM(G12:G24) -> 5266
B26: 清里 | C26: 建浜 | D26: 272 | E26: 354 | F26: 386 | G26: =SUM(E26:F26) -> 740
C27: 駅通 | D27: 125 | E27: 153 | F27: 137 | G27: =SUM(E27:F27) -> 290
C28: 梅田 | D28: 266 | E28: 308 | F28: 327 | G28: 635
C29: 校区合計 | D29: =SUM(D26:D28) -> 663 | E29: =SUM(E26:E28) -> 815 | F29: =SUM(F26:F28) -> 850 | G29: =SUM(G26:G28) -> 1665
B30: 長洲 | C30: 出町 | D30: 217 | E30: 242 | F30: 271 | G30: =SUM(E30:F30) -> 513
C31: 新町 | D31: 135 | E31: 159 | F31: 168 | G31: =SUM(E31:F31) -> 327
C32: 西新町 | D32: 38 | E32: 31 | F32: 43 | G32: 74
C33: 宮ノ町 | D33: 127 | E33: 158 | F33: 155 | G33: 313
C34: 松原 | D34: 113 | E34: 114 | F34: 123 | G34: 237
C35: 新山 | D35: 295 | E35: 314 | F35: 360 | G35: 674
C36: 宝町 | D36: 149 | E36: 137 | F36: 153 | G36: 290
C37: 磯町 | D37: 111 | E37: 110 | F37: 134 | G37: 244
C38: 上町 | D38: 69 | E38: 72 | F38: 89 | G38: 161
C39: 中町 | D39: 58 | E39: 67 | F39: 68 | G39: 135
C40: 下本 | D40: 40 | E40: 40 | F40: 57 | G40: 97
C41: 今町 | D41: 47 | E41: 50 | F41: 66 | G41: 116
C42: 下東 | D42: 250 | E42: 303 | F42: 330 | G42: 633
C43: 西荒神 | D43: 66 | E43: 69 | F43: 73 | G43: 142
C44: 東荒神 | D44: 354 | E44: 398 | F44: 460 | G44: 858
C45: 大明神 | D45: 261 | E45: 323 | F45: 331 | G45: 654
C46: 校区合計 | D46: =SUM(D30:D45) -> 2330 | E46: =SUM(E30:E45) -> 2587 | F46: =SUM(F30:F45) -> 2881 | G46: =SUM(G30:G45) -> 5468
B48: 全体 | C48: =D11+D25+D29+D46 -> 6771 | E48: =G11++G25+G29+G46 -> 16545 | G48: =E11+E25+E29+E46 -> 8042 | H48: =F11+F25+F29+F46 -> 8503
D49: （世帯数） | F49: （人口） | G49: （男） | H49: （女）

Sheet H26.6
B1: 行政区別の世帯数と人口
G2: (平成26年 | H2: 6月末日現在)
B4: 校区 | C4: 区名 | D4: 世帯数 | E4: 人口
E5: 男 | F5: 女 | G5: 全体
B6: 腹赤 | C6: 平原 | D6: 338 | E6: 376 | F6: 360 | G6: =SUM(E6:F6) -> 736
C7: 清源寺 | D7: 646 | E7: 783 | F7: 696 | G7: =SUM(E7:F7) -> 1479
C8: 上沖洲 | D8: 306 | E8: 373 | F8: 398 | G8: 771
C9: 腹赤 | D9: 337 | E9: 438 | F9: 487 | G9: 925
C10: 腹赤新町 | D10: 92 | E10: 110 | F10: 116 | G10: 226
C11: 校区合計 | D11: =SUM(D6:D10) -> 1719 | E11: =SUM(E6:E10) -> 2080 | F11: =SUM(F6:F10) -> 2057 | G11: =SUM(G6:G10) -> 4137
B12: 六栄 | C12: 折地 | D12: 189 | E12: 221 | F12: 262 | G12: =SUM(E12:F12) -> 483
C13: 赤崎 | D13: 131 | E13: 172 | F13: 190 | G13: =SUM(E13:F13) -> 362
C14: 高田 | D14: 57 | E14: 84 | F14: 88 | G14: 172
C15: 鷲巣 | D15: 218 | E15: 273 | F15: 265 | G15: 538
C16: 立野 | D16: 174 | E16: 186 | F16: 196 | G16: 382
C17: 向野 | D17: 355 | E17: 438 | F17: 469 | G17: 907
C18: 宮崎 | D18: 139 | E18: 189 | F18: 207 | G18: 396
C19: 赤田 | D19: 94 | E19: 112 | F19: 121 | G19: 233
C20: 葛輪 | D20: 75 | E20: 89 | F20: 101 | G20: 190
C21: 永方 | D21: 109 | E21: 103 | F21: 149 | G21: 252
C22: 塩屋 | D22: 92 | E22: 100 | F22: 120 | G22: 220
C23: 向野北 | D23: 196 | E23: 287 | F23: 203 | G23: 490
C24: 古城 | D24: 245 | E24: 309 | F24: 339 | G24: 648
C25: 校区合計 | D25: =SUM(D12:D24) -> 2074 | E25: =SUM(E12:E24) -> 2563 | F25: =SUM(F12:F24) -> 2710 | G25: =SUM(G12:G24) -> 5273
B26: 清里 | C26: 建浜 | D26: 272 | E26: 355 | F26: 385 | G26: =SUM(E26:F26) -> 740
C27: 駅通 | D27: 126 | E27: 153 | F27: 138 | G27: =SUM(E27:F27) -> 291
C28: 梅田 | D28: 266 | E28: 307 | F28: 327 | G28: 634
C29: 校区合計 | D29: =SUM(D26:D28) -> 664 | E29: =SUM(E26:E28) -> 815 | F29: =SUM(F26:F28) -> 850 | G29: =SUM(G26:G28) -> 1665
B30: 長洲 | C30: 出町 | D30: 218 | E30: 242 | F30: 273 | G30: =SUM(E30:F30) -> 515
C31: 新町 | D31: 135 | E31: 160 | F31: 165 | G31: =SUM(E31:F31) -> 325
C32: 西新町 | D32: 38 | E32: 31 | F32: 43 | G32: 74
C33: 宮ノ町 | D33: 127 | E33: 157 | F33: 154 | G33: 311
C34: 松原 | D34: 113 | E34: 114 | F34: 122 | G34: 236
C35: 新山 | D35: 295 | E35: 314 | F35: 359 | G35: 673
C36: 宝町 | D36: 148 | E36: 136 | F36: 152 | G36: 288
C37: 磯町 | D37: 110 | E37: 109 | F37: 133 | G37: 242
C38: 上町 | D38: 68 | E38: 72 | F38: 89 | G38: 161
C39: 中町 | D39: 56 | E39: 65 | F39: 66 | G39: 131
C40: 下本 | D40: 40 | E40: 40 | F40: 58 | G40: 98
C41: 今町 | D41: 47 | E41: 50 | F41: 66 | G41: 116
C42: 下東 | D42: 251 | E42: 304 | F42: 332 | G42: 636
C43: 西荒神 | D43: 66 | E43: 69 | F43: 72 | G43: 141
C44: 東荒神 | D44: 359 | E44: 404 | F44: 462 | G44: 866
C45: 大明神 | D45: 260 | E45: 325 | F45: 330 | G45: 655
C46: 校区合計 | D46: =SUM(D30:D45) -> 2331 | E46: =SUM(E30:E45) -> 2592 | F46: =SUM(F30:F45) -> 2876 | G46: =SUM(G30:G45) -> 5468
B48: 全体 | C48: =D11+D25+D29+D46 -> 6788 | E48: =G11++G25+G29+G46 -> 16543 | G48: =E11+E25+E29+E46 -> 8050 | H48: =F11+F25+F29+F46 -> 8493
D49: （世帯数） | F49: （人口） | G49: （男） | H49: （女）

Sheet H26.7
B1: 行政区別の世帯数と人口
G2: (平成26年 | H2: 7月末日現在)
B4: 校区 | C4: 区名 | D4: 世帯数 | E4: 人口
E5: 男 | F5: 女 | G5: 全体
B6: 腹赤 | C6: 平原 | D6: 335 | E6: 375 | F6: 356 | G6: =SUM(E6:F6) -> 731
C7: 清源寺 | D7: 649 | E7: 780 | F7: 698 | G7: =SUM(E7:F7) -> 1478
C8: 上沖洲 | D8: 305 | E8: 373 | F8: 397 | G8: 770
C9: 腹赤 | D9: 337 | E9: 439 | F9: 487 | G9: 926
C10: 腹赤新町 | D10: 92 | E10: 110 | F10: 116 | G10: 226
C11: 校区合計 | D11: =SUM(D6:D10) -> 1718 | E11: =SUM(E6:E10) -> 2077 | F11: =SUM(F6:F10) -> 2054 | G11: =SUM(G6:G10) -> 4131
B12: 六栄 | C12: 折地 | D12: 190 | E12: 224 | F12: 266 | G12: =SUM(E12:F12) -> 490
C13: 赤崎 | D13: 129 | E13: 170 | F13: 188 | G13: =SUM(E13:F13) -> 358
C14: 高田 | D14: 57 | E14: 85 | F14: 88 | G14: 173
C15: 鷲巣 | D15: 218 | E15: 273 | F15: 263 | G15: 536
C16: 立野 | D16: 175 | E16: 187 | F16: 198 | G16: 385
C17: 向野 | D17: 357 | E17: 438 | F17: 469 | G17: 907
C18: 宮崎 | D18: 139 | E18: 187 | F18: 207 | G18: 394
C19: 赤田 | D19: 96 | E19: 110 | F19: 125 | G19: 235
C20: 葛輪 | D20: 75 | E20: 88 | F20: 101 | G20: 189
C21: 永方 | D21: 108 | E21: 102 | F21: 148 | G21: 250
C22: 塩屋 | D22: 92 | E22: 100 | F22: 120 | G22: 220
C23: 向野北 | D23: 179 | E23: 268 | F23: 199 | G23: 467
C24: 古城 | D24: 244 | E24: 309 | F24: 337 | G24: 646
C25: 校区合計 | D25: =SUM(D12:D24) -> 2059 | E25: =SUM(E12:E24) -> 2541 | F25: =SUM(F12:F24) -> 2709 | G25: =SUM(G12:G24) -> 5250
B26: 清里 | C26: 建浜 | D26: 275 | E26: 361 | F26: 386 | G26: =SUM(E26:F26) -> 747
C27: 駅通 | D27: 125 | E27: 152 | F27: 138 | G27: =SUM(E27:F27) -> 290
C28: 梅田 | D28: 266 | E28: 306 | F28: 330 | G28: 636
C29: 校区合計 | D29: =SUM(D26:D28) -> 666 | E29: =SUM(E26:E28) -> 819 | F29: =SUM(F26:F28) -> 854 | G29: =SUM(G26:G28) -> 1673
B30: 長洲 | C30: 出町 | D30: 219 | E30: 243 | F30: 274 | G30: =SUM(E30:F30) -> 517
C31: 新町 | D31: 137 | E31: 161 | F31: 166 | G31: =SUM(E31:F31) -> 327
C32: 西新町 | D32: 38 | E32: 31 | F32: 43 | G32: 74
C33: 宮ノ町 | D33: 126 | E33: 154 | F33: 152 | G33: 306
C34: 松原 | D34: 113 | E34: 114 | F34: 121 | G34: 235
C35: 新山 | D35: 295 | E35: 316 | F35: 357 | G35: 673
C36: 宝町 | D36: 149 | E36: 138 | F36: 154 | G36: 292
C37: 磯町 | D37: 110 | E37: 109 | F37: 133 | G37: 242
C38: 上町 | D38: 68 | E38: 72 | F38: 89 | G38: 161
C39: 中町 | D39: 55 | E39: 65 | F39: 65 | G39: 130
C40: 下本 | D40: 40 | E40: 41 | F40: 58 | G40: 99
C41: 今町 | D41: 47 | E41: 50 | F41: 66 | G41: 116
C42: 下東 | D42: 250 | E42: 304 | F42: 332 | G42: 636
C43: 西荒神 | D43: 66 | E43: 69 | F43: 72 | G43: 141
C44: 東荒神 | D44: 359 | E44: 404 | F44: 460 | G44: 864
C45: 大明神 | D45: 261 | E45: 325 | F45: 329 | G45: 654
C46: 校区合計 | D46: =SUM(D30:D45) -> 2333 | E46: =SUM(E30:E45) -> 2596 | F46: =SUM(F30:F45) -> 2871 | G46: =SUM(G30:G45) -> 5467
B48: 全体 | C48: =D11+D25+D29+D46 -> 6776 | E48: =G11++G25+G29+G46 -> 16521 | G48: =E11+E25+E29+E46 -> 8033 | H48: =F11+F25+F29+F46 -> 8488
D49: （世帯数） | F49: （人口） | G49: （男） | H49: （女）

Sheet H26.8
B1: 行政区別の世帯数と人口
G2: (平成26年 | H2: 8月末日現在)
B4: 校区 | C4: 区名 | D4: 世帯数 | E4: 人口
E5: 男 | F5: 女 | G5: 全体
B6: 腹赤 | C6: 平原 | D6: 337 | E6: 376 | F6: 358 | G6: =SUM(E6:F6) -> 734
C7: 清源寺 | D7: 651 | E7: 782 | F7: 698 | G7: =SUM(E7:F7) -> 1480
C8: 上沖洲 | D8: 306 | E8: 372 | F8: 397 | G8: 769
C9: 腹赤 | D9: 337 | E9: 440 | F9: 488 | G9: 928
C10: 腹赤新町 | D10: 92 | E10: 110 | F10: 116 | G10: 226
C11: 校区合計 | D11: =SUM(D6:D10) -> 1723 | E11: =SUM(E6:E10) -> 2080 | F11: =SUM(F6:F10) -> 2057 | G11: =SUM(G6:G10) -> 4137
B12: 六栄 | C12: 折地 | D12: 190 | E12: 221 | F12: 264 | G12: =SUM(E12:F12) -> 485
C13: 赤崎 | D13: 128 | E13: 168 | F13: 186 | G13: =SUM(E13:F13) -> 354
C14: 高田 | D14: 57 | E14: 85 | F14: 88 | G14: 173
C15: 鷲巣 | D15: 219 | E15: 272 | F15: 263 | G15: 535
C16: 立野 | D16: 175 | E16: 187 | F16: 196 | G16: 383
C17: 向野 | D17: 358 | E17: 440 | F17: 472 | G17: 912
C18: 宮崎 | D18: 140 | E18: 187 | F18: 208 | G18: 395
C19: 赤田 | D19: 96 | E19: 109 | F19: 124 | G19: 233
C20: 葛輪 | D20: 75 | E20: 88 | F20: 101 | G20: 189
C21: 永方 | D21: 108 | E21: 102 | F21: 148 | G21: 250
C22: 塩屋 | D22: 92 | E22: 101 | F22: 120 | G22: 221
C23: 向野北 | D23: 179 | E23: 267 | F23: 199 | G23: 466
C24: 古城 | D24: 245 | E24: 310 | F24: 336 | G24: 646
C25: 校区合計 | D25: =SUM(D12:D24) -> 2062 | E25: =SUM(E12:E24) -> 2537 | F25: =SUM(F12:F24) -> 2705 | G25: =SUM(G12:G24) -> 5242
B26: 清里 | C26: 建浜 | D26: 275 | E26: 364 | F26: 383 | G26: =SUM(E26:F26) -> 747
C27: 駅通 | D27: 126 | E27: 152 | F27: 139 | G27: =SUM(E27:F27) -> 291
C28: 梅田 | D28: 267 | E28: 307 | F28: 331 | G28: 638
C29: 校区合計 | D29: =SUM(D26:D28) -> 668 | E29: =SUM(E26:E28) -> 823 | F29: =SUM(F26:F28) -> 853 | G29: =SUM(G26:G28) -> 1676
B30: 長洲 | C30: 出町 | D30: 220 | E30: 245 | F30: 275 | G30: =SUM(E30:F30) -> 520
C31: 新町 | D31: 137 | E31: 162 | F31: 166 | G31: =SUM(E31:F31) -> 328
C32: 西新町 | D32: 37 | E32: 31 | F32: 42 | G32: 73
C33: 宮ノ町 | D33: 125 | E33: 151 | F33: 151 | G33: 302
C34: 松原 | D34: 113 | E34: 114 | F34: 120 | G34: 234
C35: 新山 | D35: 294 | E35: 315 | F35: 356 | G35: 671
C36: 宝町 | D36: 148 | E36: 138 | F36: 152 | G36: 290
C37: 磯町 | D37: 110 | E37: 109 | F37: 132 | G37: 241
C38: 上町 | D38: 68 | E38: 72 | F38: 89 | G38: 161
C39: 中町 | D39: 54 | E39: 64 | F39: 65 | G39: 129
C40: 下本 | D40: 40 | E40: 41 | F40: 58 | G40: 99
C41: 今町 | D41: 47 | E41: 50 | F41: 66 | G41: 116
C42: 下東 | D42: 248 | E42: 295 | F42: 328 | G42: 623
C43: 西荒神 | D43: 66 | E43: 69 | F43: 72 | G43: 141
C44: 東荒神 | D44: 361 | E44: 410 | F44: 462 | G44: 872
C45: 大明神 | D45: 262 | E45: 326 | F45: 329 | G45: 655
C46: 校区合計 | D46: =SUM(D30:D45) -> 2330 | E46: =SUM(E30:E45) -> 2592 | F46: =SUM(F30:F45) -> 2863 | G46: =SUM(G30:G45) -> 5455
B48: 全体 | C48: =D11+D25+D29+D46 -> 6783 | E48: =G11++G25+G29+G46 -> 16510 | G48: =E11+E25+E29+E46 -> 8032 | H48: =F11+F25+F29+F46 -> 8478
D49: （世帯数） | F49: （人口） | G49: （男） | H49: （女）

Sheet H26.9
B1: 行政区別の世帯数と人口
G2: (平成26年 | H2: 9月末日現在)
B4: 校区 | C4: 区名 | D4: 世帯数 | E4: 人口
E5: 男 | F5: 女 | G5: 全体
B6: 腹赤 | C6: 平原 | D6: 336 | E6: 378 | F6: 356 | G6: =SUM(E6:F6) -> 734
C7: 清源寺 | D7: 645 | E7: 775 | F7: 694 | G7: =SUM(E7:F7) -> 1469
C8: 上沖洲 | D8: 306 | E8: 370 | F8: 398 | G8: =SUM(E8:F8) -> 768
C9: 腹赤 | D9: 339 | E9: 444 | F9: 492 | G9: 936
C10: 腹赤新町 | D10: 92 | E10: 110 | F10: 115 | G10: =SUM(E10:F10) -> 225
C11: 校区合計 | D11: =SUM(D6:D10) -> 1718 | E11: =SUM(E6:E10) -> 2077 | F11: =SUM(F6:F10) -> 2055 | G11: =SUM(G6:G10) -> 4132
B12: 六栄 | C12: 折地 | D12: 189 | E12: 222 | F12: 262 | G12: =SUM(E12:F12) -> 484
C13: 赤崎 | D13: 128 | E13: 168 | F13: 188 | G13: =SUM(E13:F13) -> 356
C14: 高田 | D14: 57 | E14: 84 | F14: 87 | G14: =SUM(E14:F14) -> 171
C15: 鷲巣 | D15: 219 | E15: 273 | F15: 262 | G15: 535
C16: 立野 | D16: 176 | E16: 189 | F16: 198 | G16: 387
C17: 向野 | D17: 363 | E17: 447 | F17: 478 | G17: 925
C18: 宮崎 | D18: 140 | E18: 184 | F18: 207 | G18: 391
C19: 赤田 | D19: 96 | E19: 109 | F19: 124 | G19: 233
C20: 葛輪 | D20: 75 | E20: 88 | F20: 101 | G20: 189
C21: 永方 | D21: 107 | E21: 102 | F21: 146 | G21: 248
C22: 塩屋 | D22: 95 | E22: 101 | F22: 123 | G22: 224
C23: 向野北 | D23: 195 | E23: 282 | F23: 197 | G23: 479
C24: 古城 | D24: 246 | E24: 312 | F24: 337 | G24: =SUM(E24:F24) -> 649
C25: 校区合計 | D25: =SUM(D12:D24) -> 2086 | E25: =SUM(E12:E24) -> 2561 | F25: =SUM(F12:F24) -> 2710 | G25: =SUM(G12:G24) -> 5271
B26: 清里 | C26: 建浜 | D26: 275 | E26: 364 | F26: 385 | G26: =SUM(E26:F26) -> 749
C27: 駅通 | D27: 126 | E27: 151 | F27: 144 | G27: =SUM(E27:F27) -> 295
C28: 梅田 | D28: 267 | E28: 306 | F28: 330 | G28: =SUM(E28:F28) -> 636
C29: 校区合計 | D29: =SUM(D26:D28) -> 668 | E29: =SUM(E26:E28) -> 821 | F29: =SUM(F26:F28) -> 859 | G29: =SUM(G26:G28) -> 1680
B30: 長洲 | C30: 出町 | D30: 220 | E30: 245 | F30: 273 | G30: =SUM(E30:F30) -> 518
C31: 新町 | D31: 137 | E31: 162 | F31: 167 | G31: =SUM(E31:F31) -> 329
C32: 西新町 | D32: 38 | E32: 32 | F32: 42 | G32: =SUM(E32:F32) -> 74
C33: 宮ノ町 | D33: 126 | E33: 151 | F33: 151 | G33: 302
C34: 松原 | D34: 114 | E34: 114 | F34: 120 | G34: 234
C35: 新山 | D35: 294 | E35: 318 | F35: 356 | G35: 674
C36: 宝町 | D36: 148 | E36: 138 | F36: 153 | G36: 291
C37: 磯町 | D37: 110 | E37: 109 | F37: 132 | G37: 241
C38: 上町 | D38: 68 | E38: 72 | F38: 89 | G38: 161
C39: 中町 | D39: 54 | E39: 64 | F39: 65 | G39: 129
C40: 下本 | D40: 40 | E40: 41 | F40: 58 | G40: 99
C41: 今町 | D41: 47 | E41: 50 | F41: 66 | G41: 116
C42: 下東 | D42: 246 | E42: 293 | F42: 329 | G42: 622
C43: 西荒神 | D43: 66 | E43: 68 | F43: 71 | G43: 139
C44: 東荒神 | D44: 363 | E44: 414 | F44: 465 | G44: 879
C45: 大明神 | D45: 260 | E45: 321 | F45: 329 | G45: =SUM(E45:F45) -> 650
C46: 校区合計 | D46: =SUM(D30:D45) -> 2331 | E46: =SUM(E30:E45) -> 2592 | F46: =SUM(F30:F45) -> 2866 | G46: =SUM(G30:G45) -> 5458
B48: 全体 | C48: =D11+D25+D29+D46 -> 6803 | E48: =G11++G25+G29+G46 -> 16541 | G48: =E11+E25+E29+E46 -> 8051 | H48: =F11+F25+F29+F46 -> 8490
D49: （世帯数） | F49: （人口） | G49: （男） | H49: （女）

Sheet H26.10
B1: 行政区別の世帯数と人口
G2: (平成26年 | H2: 10月末日現在)
B4: 校区 | C4: 区名 | D4: 世帯数 | E4: 人口
E5: 男 | F5: 女 | G5: 全体
B6: 腹赤 | C6: 平原 | D6: 340 | E6: 385 | F6: 358 | G6: =SUM(E6:F6) -> 743
C7: 清源寺 | D7: 654 | E7: 777 | F7: 689 | G7: =SUM(E7:F7) -> 1466
C8: 上沖洲 | D8: 306 | E8: 368 | F8: 398 | G8: 766
C9: 腹赤 | D9: 339 | E9: 443 | F9: 492 | G9: 935
C10: 腹赤新町 | D10: 93 | E10: 111 | F10: 117 | G10: 228
C11: 校区合計 | D11: =SUM(D6:D10) -> 1732 | E11: =SUM(E6:E10) -> 2084 | F11: =SUM(F6:F10) -> 2054 | G11: =SUM(G6:G10) -> 4138
B12: 六栄 | C12: 折地 | D12: 189 | E12: 222 | F12: 262 | G12: =SUM(E12:F12) -> 484
C13: 赤崎 | D13: 128 | E13: 168 | F13: 188 | G13: =SUM(E13:F13) -> 356
C14: 高田 | D14: 57 | E14: 84 | F14: 88 | G14: 172
C15: 鷲巣 | D15: 219 | E15: 274 | F15: 263 | G15: 537
C16: 立野 | D16: 177 | E16: 191 | F16: 200 | G16: 391
C17: 向野 | D17: 364 | E17: 450 | F17: 479 | G17: 929
C18: 宮崎 | D18: 140 | E18: 184 | F18: 206 | G18: 390
C19: 赤田 | D19: 97 | E19: 108 | F19: 125 | G19: 233
C20: 葛輪 | D20: 74 | E20: 88 | F20: 100 | G20: 188
C21: 永方 | D21: 107 | E21: 102 | F21: 146 | G21: 248
C22: 塩屋 | D22: 93 | E22: 101 | F22: 121 | G22: 222
C23: 向野北 | D23: 195 | E23: 279 | F23: 198 | G23: 477
C24: 古城 | D24: 246 | E24: 309 | F24: 337 | G24: 646
C25: 校区合計 | D25: =SUM(D12:D24) -> 2086 | E25: =SUM(E12:E24) -> 2560 | F25: =SUM(F12:F24) -> 2713 | G25: =SUM(G12:G24) -> 5273
B26: 清里 | C26: 建浜 | D26: 277 | E26: 365 | F26: 387 | G26: =SUM(E26:F26) -> 752
C27: 駅通 | D27: 126 | E27: 151 | F27: 144 | G27: =SUM(E27:F27) -> 295
C28: 梅田 | D28: 267 | E28: 306 | F28: 333 | G28: 639
C29: 校区合計 | D29: =SUM(D26:D28) -> 670 | E29: =SUM(E26:E28) -> 822 | F29: =SUM(F26:F28) -> 864 | G29: =SUM(G26:G28) -> 1686
B30: 長洲 | C30: 出町 | D30: 219 | E30: 246 | F30: 270 | G30: =SUM(E30:F30) -> 516
C31: 新町 | D31: 140 | E31: 164 | F31: 167 | G31: =SUM(E31:F31) -> 331
C32: 西新町 | D32: 38 | E32: 32 | F32: 42 | G32: 74
C33: 宮ノ町 | D33: 126 | E33: 151 | F33: 152 | G33: 303
C34: 松原 | D34: 113 | E34: 113 | F34: 117 | G34: 230
C35: 新山 | D35: 294 | E35: 318 | F35: 357 | G35: 675
C36: 宝町 | D36: 150 | E36: 140 | F36: 154 | G36: 294
C37: 磯町 | D37: 109 | E37: 109 | F37: 130 | G37: 239
C38: 上町 | D38: 68 | E38: 71 | F38: 89 | G38: 160
C39: 中町 | D39: 54 | E39: 64 | F39: 65 | G39: 129
C40: 下本 | D40: 41 | E40: 41 | F40: 58 | G40: 99
C41: 今町 | D41: 47 | E41: 50 | F41: 66 | G41: 116
C42: 下東 | D42: 244 | E42: 293 | F42: 328 | G42: 621
C43: 西荒神 | D43: 66 | E43: 68 | F43: 71 | G43: 139
C44: 東荒神 | D44: 364 | E44: 414 | F44: 467 | G44: 881
C45: 大明神 | D45: 260 | E45: 320 | F45: 329 | G45: 649
C46: 校区合計 | D46: =SUM(D30:D45) -> 2333 | E46: =SUM(E30:E45) -> 2594 | F46: =SUM(F30:F45) -> 2862 | G46: =SUM(G30:G45) -> 5456
B48: 全体 | C48: =D11+D25+D29+D46 -> 6821 | E48: =G11++G25+G29+G46 -> 16553 | G48: =E11+E25+E29+E46 -> 8060 | H48: =F11+F25+F29+F46 -> 8493
D49: （世帯数） | F49: （人口） | G49: （男） | H49: （女）

Sheet H26.11
B1: 行政区別の世帯数と人口
G2: (平成26年 | H2: 11月末日現在)
B4: 校区 | C4: 区名 | D4: 世帯数 | E4: 人口
E5: 男 | F5: 女 | G5: 全体
B6: 腹赤 | C6: 平原 | D6: 339 | E6: 384 | F6: 353 | G6: =SUM(E6:F6) -> 737
C7: 清源寺 | D7: 643 | E7: 774 | F7: 690 | G7: =SUM(E7:F7) -> 1464
C8: 上沖洲 | D8: 307 | E8: 370 | F8: 400 | G8: 770
C9: 腹赤 | D9: 339 | E9: 443 | F9: 492 | G9: 935
C10: 腹赤新町 | D10: 93 | E10: 111 | F10: 117 | G10: 228
C11: 校区合計 | D11: =SUM(D6:D10) -> 1721 | E11: =SUM(E6:E10) -> 2082 | F11: =SUM(F6:F10) -> 2052 | G11: =SUM(G6:G10) -> 4134
B12: 六栄 | C12: 折地 | D12: 189 | E12: 222 | F12: 261 | G12: =SUM(E12:F12) -> 483
C13: 赤崎 | D13: 128 | E13: 168 | F13: 188 | G13: =SUM(E13:F13) -> 356
C14: 高田 | D14: 57 | E14: 84 | F14: 88 | G14: 172
C15: 鷲巣 | D15: 219 | E15: 274 | F15: 264 | G15: 538
C16: 立野 | D16: 176 | E16: 190 | F16: 199 | G16: 389
C17: 向野 | D17: 362 | E17: 444 | F17: 476 | G17: 920
C18: 宮崎 | D18: 140 | E18: 184 | F18: 206 | G18: 390
C19: 赤田 | D19: 97 | E19: 108 | F19: 125 | G19: 233
C20: 葛輪 | D20: 74 | E20: 88 | F20: 100 | G20: 188
C21: 永方 | D21: 107 | E21: 102 | F21: 145 | G21: 247
C22: 塩屋 | D22: 92 | E22: 100 | F22: 121 | G22: 221
C23: 向野北 | D23: 192 | E23: 274 | F23: 196 | G23: 470
C24: 古城 | D24: 246 | E24: 309 | F24: 337 | G24: 646
C25: 校区合計 | D25: =SUM(D12:D24) -> 2079 | E25: =SUM(E12:E24) -> 2547 | F25: =SUM(F12:F24) -> 2706 | G25: =SUM(G12:G24) -> 5253
B26: 清里 | C26: 建浜 | D26: 277 | E26: 365 | F26: 387 | G26: =SUM(E26:F26) -> 752
C27: 駅通 | D27: 125 | E27: 151 | F27: 143 | G27: =SUM(E27:F27) -> 294
C28: 梅田 | D28: 267 | E28: 306 | F28: 332 | G28: 638
C29: 校区合計 | D29: =SUM(D26:D28) -> 669 | E29: =SUM(E26:E28) -> 822 | F29: =SUM(F26:F28) -> 862 | G29: =SUM(G26:G28) -> 1684
B30: 長洲 | C30: 出町 | D30: 220 | E30: 248 | F30: 270 | G30: =SUM(E30:F30) -> 518
C31: 新町 | D31: 142 | E31: 166 | F31: 169 | G31: =SUM(E31:F31) -> 335
C32: 西新町 | D32: 37 | E32: 32 | F32: 41 | G32: 73
C33: 宮ノ町 | D33: 124 | E33: 148 | F33: 152 | G33: 300
C34: 松原 | D34: 112 | E34: 113 | F34: 117 | G34: 230
C35: 新山 | D35: 293 | E35: 319 | F35: 356 | G35: 675
C36: 宝町 | D36: 149 | E36: 139 | F36: 153 | G36: 292
C37: 磯町 | D37: 110 | E37: 109 | F37: 132 | G37: 241
C38: 上町 | D38: 68 | E38: 71 | F38: 89 | G38: 160
C39: 中町 | D39: 53 | E39: 63 | F39: 65 | G39: 128
C40: 下本 | D40: 41 | E40: 41 | F40: 57 | G40: 98
C41: 今町 | D41: 47 | E41: 50 | F41: 66 | G41: 116
C42: 下東 | D42: 243 | E42: 293 | F42: 325 | G42: 618
C43: 西荒神 | D43: 67 | E43: 69 | F43: 71 | G43: 140
C44: 東荒神 | D44: 362 | E44: 413 | F44: 466 | G44: 879
C45: 大明神 | D45: 262 | E45: 320 | F45: 333 | G45: 653
C46: 校区合計 | D46: =SUM(D30:D45) -> 2330 | E46: =SUM(E30:E45) -> 2594 | F46: =SUM(F30:F45) -> 2862 | G46: =SUM(G30:G45) -> 5456
B48: 全体 | C48: =D11+D25+D29+D46 -> 6799 | E48: =G11++G25+G29+G46 -> 16527 | G48: =E11+E25+E29+E46 -> 8045 | H48: =F11+F25+F29+F46 -> 8482
D49: （世帯数） | F49: （人口） | G49: （男） | H49: （女）

Sheet H26.12
B1: 行政区別の世帯数と人口
G2: (平成26年 | H2: 12月末日現在)
B4: 校区 | C4: 区名 | D4: 世帯数 | E4: 人口
E5: 男 | F5: 女 | G5: 全体
B6: 腹赤 | C6: 平原 | D6: 341 | E6: 386 | F6: 359 | G6: =SUM(E6:F6) -> 745
C7: 清源寺 | D7: 641 | E7: 773 | F7: 690 | G7: =SUM(E7:F7) -> 1463
C8: 上沖洲 | D8: 308 | E8: 372 | F8: 399 | G8: 771
C9: 腹赤 | D9: 341 | E9: 445 | F9: 493 | G9: 938
C10: 腹赤新町 | D10: 93 | E10: 110 | F10: 116 | G10: 226
C11: 校区合計 | D11: =SUM(D6:D10) -> 1724 | E11: =SUM(E6:E10) -> 2086 | F11: =SUM(F6:F10) -> 2057 | G11: =SUM(G6:G10) -> 4143
B12: 六栄 | C12: 折地 | D12: 189 | E12: 221 | F12: 258 | G12: =SUM(E12:F12) -> 479
C13: 赤崎 | D13: 128 | E13: 166 | F13: 183 | G13: =SUM(E13:F13) -> 349
C14: 高田 | D14: 56 | E14: 83 | F14: 84 | G14: 167
C15: 鷲巣 | D15: 219 | E15: 272 | F15: 264 | G15: 536
C16: 立野 | D16: 176 | E16: 191 | F16: 197 | G16: 388
C17: 向野 | D17: 362 | E17: 443 | F17: 474 | G17: 917
C18: 宮崎 | D18: 140 | E18: 185 | F18: 207 | G18: 392
C19: 赤田 | D19: 97 | E19: 108 | F19: 125 | G19: 233
C20: 葛輪 | D20: 74 | E20: 87 | F20: 100 | G20: 187
C21: 永方 | D21: 106 | E21: 102 | F21: 144 | G21: 246
C22: 塩屋 | D22: 92 | E22: 100 | F22: 121 | G22: 221
C23: 向野北 | D23: 194 | E23: 274 | F23: 201 | G23: 475
C24: 古城 | D24: 248 | E24: 309 | F24: 339 | G24: 648
C25: 校区合計 | D25: =SUM(D12:D24) -> 2081 | E25: =SUM(E12:E24) -> 2541 | F25: =SUM(F12:F24) -> 2697 | G25: =SUM(G12:G24) -> 5238
B26: 清里 | C26: 建浜 | D26: 278 | E26: 365 | F26: 389 | G26: =SUM(E26:F26) -> 754
C27: 駅通 | D27: 126 | E27: 151 | F27: 143 | G27: =SUM(E27:F27) -> 294
C28: 梅田 | D28: 267 | E28: 307 | F28: 332 | G28: 639
C29: 校区合計 | D29: =SUM(D26:D28) -> 671 | E29: =SUM(E26:E28) -> 823 | F29: =SUM(F26:F28) -> 864 | G29: =SUM(G26:G28) -> 1687
B30: 長洲 | C30: 出町 | D30: 219 | E30: 244 | F30: 268 | G30: =SUM(E30:F30) -> 512
C31: 新町 | D31: 143 | E31: 167 | F31: 169 | G31: =SUM(E31:F31) -> 336
C32: 西新町 | D32: 37 | E32: 32 | F32: 41 | G32: 73
C33: 宮ノ町 | D33: 123 | E33: 146 | F33: 151 | G33: 297
C34: 松原 | D34: 113 | E34: 113 | F34: 120 | G34: 233
C35: 新山 | D35: 294 | E35: 319 | F35: 356 | G35: 675
C36: 宝町 | D36: 148 | E36: 139 | F36: 152 | G36: 291
C37: 磯町 | D37: 109 | E37: 109 | F37: 131 | G37: 240
C38: 上町 | D38: 68 | E38: 71 | F38: 89 | G38: 160
C39: 中町 | D39: 54 | E39: 64 | F39: 66 | G39: 130
C40: 下本 | D40: 42 | E40: 40 | F40: 57 | G40: 97
C41: 今町 | D41: 47 | E41: 50 | F41: 66 | G41: 116
C42: 下東 | D42: 244 | E42: 295 | F42: 327 | G42: 622
C43: 西荒神 | D43: 67 | E43: 69 | F43: 72 | G43: 141
C44: 東荒神 | D44: 363 | E44: 412 | F44: 467 | G44: 879
C45: 大明神 | D45: 260 | E45: 320 | F45: 332 | G45: 652
C46: 校区合計 | D46: =SUM(D30:D45) -> 2331 | E46: =SUM(E30:E45) -> 2590 | F46: =SUM(F30:F45) -> 2864 | G46: =SUM(G30:G45) -> 5454
B48: 全体 | C48: =D11+D25+D29+D46 -> 6807 | E48: =G11++G25+G29+G46 -> 16522 | G48: =E11+E25+E29+E46 -> 8040 | H48: =F11+F25+F29+F46 -> 8482
D49: （世帯数） | F49: （人口） | G49: （男） | H49: （女）

Sheet H27.1
B1: 行政区別の世帯数と人口
G2: (平成27年 | H2: 1月末日現在)
B4: 校区 | C4: 区名 | D4: 世帯数 | E4: 人口
E5: 男 | F5: 女 | G5: 全体
B6: 腹赤 | C6: 平原 | D6: 342 | E6: 387 | F6: 358 | G6: =SUM(E6:F6) -> 745
C7: 清源寺 | D7: 631 | E7: 762 | F7: 690 | G7: =SUM(E7:F7) -> 1452
C8: 上沖洲 | D8: 308 | E8: 372 | F8: 397 | G8: 769
C9: 腹赤 | D9: 340 | E9: 444 | F9: 493 | G9: 937
C10: 腹赤新町 | D10: 93 | E10: 110 | F10: 116 | G10: 226
C11: 校区合計 | D11: =SUM(D6:D10) -> 1714 | E11: =SUM(E6:E10) -> 2075 | F11: =SUM(F6:F10) -> 2054 | G11: =SUM(G6:G10) -> 4129
B12: 六栄 | C12: 折地 | D12: 190 | E12: 222 | F12: 257 | G12: =SUM(E12:F12) -> 479
C13: 赤崎 | D13: 128 | E13: 166 | F13: 182 | G13: =SUM(E13:F13) -> 348
C14: 高田 | D14: 56 | E14: 82 | F14: 84 | G14: 166
C15: 鷲巣 | D15: 218 | E15: 270 | F15: 264 | G15: 534
C16: 立野 | D16: 176 | E16: 190 | F16: 197 | G16: 387
C17: 向野 | D17: 362 | E17: 440 | F17: 473 | G17: 913
C18: 宮崎 | D18: 141 | E18: 185 | F18: 210 | G18: 395
C19: 赤田 | D19: 98 | E19: 109 | F19: 124 | G19: 233
C20: 葛輪 | D20: 74 | E20: 87 | F20: 100 | G20: 187
C21: 永方 | D21: 107 | E21: 102 | F21: 145 | G21: 247
C22: 塩屋 | D22: 92 | E22: 100 | F22: 121 | G22: 221
C23: 向野北 | D23: 215 | E23: 295 | F23: 196 | G23: 491
C24: 古城 | D24: 250 | E24: 312 | F24: 342 | G24: 654
C25: 校区合計 | D25: =SUM(D12:D24) -> 2107 | E25: =SUM(E12:E24) -> 2560 | F25: =SUM(F12:F24) -> 2695 | G25: =SUM(G12:G24) -> 5255
B26: 清里 | C26: 建浜 | D26: 279 | E26: 365 | F26: 388 | G26: =SUM(E26:F26) -> 753
C27: 駅通 | D27: 126 | E27: 151 | F27: 143 | G27: =SUM(E27:F27) -> 294
C28: 梅田 | D28: 266 | E28: 306 | F28: 331 | G28: 637
C29: 校区合計 | D29: =SUM(D26:D28) -> 671 | E29: =SUM(E26:E28) -> 822 | F29: =SUM(F26:F28) -> 862 | G29: =SUM(G26:G28) -> 1684
B30: 長洲 | C30: 出町 | D30: 218 | E30: 243 | F30: 267 | G30: =SUM(E30:F30) -> 510
C31: 新町 | D31: 144 | E31: 168 | F31: 169 | G31: =SUM(E31:F31) -> 337
C32: 西新町 | D32: 37 | E32: 32 | F32: 41 | G32: 73
C33: 宮ノ町 | D33: 124 | E33: 147 | F33: 153 | G33: 300
C34: 松原 | D34: 112 | E34: 114 | F34: 119 | G34: 233
C35: 新山 | D35: 293 | E35: 320 | F35: 360 | G35: 680
C36: 宝町 | D36: 148 | E36: 138 | F36: 152 | G36: 290
C37: 磯町 | D37: 109 | E37: 108 | F37: 128 | G37: 236
C38: 上町 | D38: 69 | E38: 72 | F38: 89 | G38: 161
C39: 中町 | D39: 55 | E39: 65 | F39: 67 | G39: 132
C40: 下本 | D40: 43 | E40: 40 | F40: 58 | G40: 98
C41: 今町 | D41: 47 | E41: 50 | F41: 66 | G41: 116
C42: 下東 | D42: 246 | E42: 297 | F42: 329 | G42: 626
C43: 西荒神 | D43: 67 | E43: 70 | F43: 71 | G43: 141
C44: 東荒神 | D44: 358 | E44: 411 | F44: 463 | G44: 874
C45: 大明神 | D45: 260 | E45: 318 | F45: 332 | G45: 650
C46: 校区合計 | D46: =SUM(D30:D45) -> 2330 | E46: =SUM(E30:E45) -> 2593 | F46: =SUM(F30:F45) -> 2864 | G46: =SUM(G30:G45) -> 5457
B48: 全体 | C48: =D11+D25+D29+D46 -> 6822 | E48: =G11++G25+G29+G46 -> 16525 | G48: =E11+E25+E29+E46 -> 8050 | H48: =F11+F25+F29+F46 -> 8475
D49: （世帯数） | F49: （人口） | G49: （男） | H49: （女）

Sheet H27.2
B1: 行政区別の世帯数と人口
G2: (平成27年 | H2: 2月末日現在)
B4: 校区 | C4: 区名 | D4: 世帯数 | E4: 人口
E5: 男 | F5: 女 | G5: 全体
B6: 腹赤 | C6: 平原 | D6: 341 | E6: 386 | F6: 357 | G6: =SUM(E6:F6) -> 743
C7: 清源寺 | D7: 631 | E7: 761 | F7: 691 | G7: =SUM(E7:F7) -> 1452
C8: 上沖洲 | D8: 308 | E8: 369 | F8: 392 | G8: 761
C9: 腹赤 | D9: 340 | E9: 445 | F9: 491 | G9: 936
C10: 腹赤新町 | D10: 93 | E10: 110 | F10: 117 | G10: 227
C11: 校区合計 | D11: =SUM(D6:D10) -> 1713 | E11: 2071 | F11: =SUM(F6:F10) -> 2048 | G11: =SUM(G6:G10) -> 4119
B12: 六栄 | C12: 折地 | D12: 190 | E12: 222 | F12: 256 | G12: =SUM(E12:F12) -> 478
C13: 赤崎 | D13: 127 | E13: 166 | F13: 181 | G13: =SUM(E13:F13) -> 347
C14: 高田 | D14: 57 | E14: 85 | F14: 86 | G14: 171
C15: 鷲巣 | D15: 219 | E15: 272 | F15: 265 | G15: 537
C16: 立野 | D16: 174 | E16: 188 | F16: 196 | G16: 384
C17: 向野 | D17: 362 | E17: 439 | F17: 475 | G17: 914
C18: 宮崎 | D18: 143 | E18: 185 | F18: 211 | G18: 396
C19: 赤田 | D19: 99 | E19: 111 | F19: 125 | G19: 236
C20: 葛輪 | D20: 74 | E20: 87 | F20: 100 | G20: 187
C21: 永方 | D21: 107 | E21: 102 | F21: 145 | G21: 247
C22: 塩屋 | D22: 92 | E22: 100 | F22: 120 | G22: 220
C23: 向野北 | D23: 214 | E23: 293 | F23: 195 | G23: 488
C24: 古城 | D24: 249 | E24: 308 | F24: 338 | G24: 646
C25: 校区合計 | D25: =SUM(D12:D24) -> 2107 | E25: =SUM(E12:E24) -> 2558 | F25: =SUM(F12:F24) -> 2693 | G25: =SUM(G12:G24) -> 5251
B26: 清里 | C26: 建浜 | D26: 279 | E26: 367 | F26: 390 | G26: =SUM(E26:F26) -> 757
C27: 駅通 | D27: 126 | E27: 151 | F27: 143 | G27: =SUM(E27:F27) -> 294
C28: 梅田 | D28: 267 | E28: 307 | F28: 332 | G28: 639
C29: 校区合計 | D29: =SUM(D26:D28) -> 672 | E29: =SUM(E26:E28) -> 825 | F29: =SUM(F26:F28) -> 865 | G29: =SUM(G26:G28) -> 1690
B30: 長洲 | C30: 出町 | D30: 216 | E30: 240 | F30: 265 | G30: =SUM(E30:F30) -> 505
C31: 新町 | D31: 145 | E31: 169 | F31: 172 | G31: =SUM(E31:F31) -> 341
C32: 西新町 | D32: 37 | E32: 32 | F32: 41 | G32: 73
C33: 宮ノ町 | D33: 123 | E33: 145 | F33: 151 | G33: 296
C34: 松原 | D34: 112 | E34: 113 | F34: 119 | G34: 232
C35: 新山 | D35: 292 | E35: 318 | F35: 360 | G35: 678
C36: 宝町 | D36: 148 | E36: 139 | F36: 152 | G36: 291
C37: 磯町 | D37: 110 | E37: 108 | F37: 128 | G37: 236
C38: 上町 | D38: 69 | E38: 72 | F38: 89 | G38: 161
C39: 中町 | D39: 55 | E39: 65 | F39: 67 | G39: 132
C40: 下本 | D40: 43 | E40: 41 | F40: 58 | G40: 99
C41: 今町 | D41: 47 | E41: 51 | F41: 68 | G41: 119
C42: 下東 | D42: 247 | E42: 300 | F42: 328 | G42: 628
C43: 西荒神 | D43: 66 | E43: 69 | F43: 71 | G43: 140
C44: 東荒神 | D44: 360 | E44: 412 | F44: 464 | G44: 876
C45: 大明神 | D45: 260 | E45: 320 | F45: 329 | G45: 649
C46: 校区合計 | D46: =SUM(D30:D45) -> 2330 | E46: =SUM(E30:E45) -> 2594 | F46: 2862 | G46: =SUM(G30:G45) -> 5456
B48: 全体 | C48: =D11+D25+D29+D46 -> 6822 | E48: =G11+G25+G29+G46 -> 16516 | G48: =E11+E25+E29+E46 -> 8048 | H48: =F11+F25+F29+F46 -> 8468
D49: （世帯数） | F49: （人口） | G49: （男） | H49: （女）

Sheet H27.3
B1: 行政区別の世帯数と人口
G2: (平成27年 | H2: 3月末日現在)
B4: 校区 | C4: 区名 | D4: 世帯数 | E4: 人口
E5: 男 | F5: 女 | G5: 全体
B6: 腹赤 | C6: 平原 | D6: 341 | E6: 379 | F6: 356 | G6: =SUM(E6:F6) -> 735
C7: 清源寺 | D7: 641 | E7: 766 | F7: 687 | G7: =SUM(E7:F7) -> 1453
C8: 上沖洲 | D8: 309 | E8: 366 | F8: 389 | G8: 755
C9: 腹赤 | D9: 344 | E9: 448 | F9: 497 | G9: 945
C10: 腹赤新町 | D10: 93 | E10: 110 | F10: 116 | G10: 226
C11: 校区合計 | D11: =SUM(D6:D10) -> 1728 | E11: 2069 | F11: =SUM(F6:F10) -> 2045 | G11: =SUM(G6:G10) -> 4114
B12: 六栄 | C12: 折地 | D12: 191 | E12: 224 | F12: 256 | G12: =SUM(E12:F12) -> 480
C13: 赤崎 | D13: 129 | E13: 170 | F13: 181 | G13: =SUM(E13:F13) -> 351
C14: 高田 | D14: 57 | E14: 83 | F14: 87 | G14: 170
C15: 鷲巣 | D15: 220 | E15: 276 | F15: 268 | G15: 544
C16: 立野 | D16: 174 | E16: 188 | F16: 192 | G16: 380
C17: 向野 | D17: 360 | E17: 431 | F17: 472 | G17: 903
C18: 宮崎 | D18: 144 | E18: 186 | F18: 213 | G18: 399
C19: 赤田 | D19: 100 | E19: 111 | F19: 128 | G19: 239
C20: 葛輪 | D20: 75 | E20: 85 | F20: 99 | G20: 184
C21: 永方 | D21: 107 | E21: 101 | F21: 146 | G21: 247
C22: 塩屋 | D22: 93 | E22: 101 | F22: 118 | G22: 219
C23: 向野北 | D23: 205 | E23: 281 | F23: 194 | G23: 475
C24: 古城 | D24: 250 | E24: 311 | F24: 337 | G24: 648
C25: 校区合計 | D25: =SUM(D12:D24) -> 2105 | E25: =SUM(E12:E24) -> 2548 | F25: =SUM(F12:F24) -> 2691 | G25: =SUM(G12:G24) -> 5239
B26: 清里 | C26: 建浜 | D26: 278 | E26: 364 | F26: 387 | G26: =SUM(E26:F26) -> 751
C27: 駅通 | D27: 125 | E27: 150 | F27: 141 | G27: =SUM(E27:F27) -> 291
C28: 梅田 | D28: 268 | E28: 308 | F28: 332 | G28: 640
C29: 校区合計 | D29: =SUM(D26:D28) -> 671 | E29: =SUM(E26:E28) -> 822 | F29: =SUM(F26:F28) -> 860 | G29: =SUM(G26:G28) -> 1682
B30: 長洲 | C30: 出町 | D30: 217 | E30: 235 | F30: 265 | G30: =SUM(E30:F30) -> 500
C31: 新町 | D31: 145 | E31: 171 | F31: 172 | G31: =SUM(E31:F31) -> 343
C32: 西新町 | D32: 37 | E32: 32 | F32: 41 | G32: 73
C33: 宮ノ町 | D33: 123 | E33: 143 | F33: 151 | G33: 294
C34: 松原 | D34: 108 | E34: 110 | F34: 120 | G34: 230
C35: 新山 | D35: 292 | E35: 317 | F35: 360 | G35: 677
C36: 宝町 | D36: 148 | E36: 138 | F36: 151 | G36: 289
C37: 磯町 | D37: 110 | E37: 107 | F37: 128 | G37: 235
C38: 上町 | D38: 70 | E38: 70 | F38: 88 | G38: 158
C39: 中町 | D39: 54 | E39: 63 | F39: 67 | G39: 130
C40: 下本 | D40: 44 | E40: 41 | F40: 58 | G40: 99
C41: 今町 | D41: 48 | E41: 51 | F41: 68 | G41: 119
C42: 下東 | D42: 248 | E42: 298 | F42: 326 | G42: 624
C43: 西荒神 | D43: 67 | E43: 73 | F43: 73 | G43: 146
C44: 東荒神 | D44: 357 | E44: 407 | F44: 455 | G44: 862
C45: 大明神 | D45: 262 | E45: 322 | F45: 327 | G45: 649
C46: 校区合計 | D46: =SUM(D30:D45) -> 2330 | E46: =SUM(E30:E45) -> 2578 | F46: =SUM(F30:F45) -> 2850 | G46: =SUM(G30:G45) -> 5428
B48: 全体 | C48: =D11+D25+D29+D46 -> 6834 | E48: =G11++G25+G29+G46 -> 16463 | G48: =E11+E25+E29+E46 -> 8017 | H48: =F11+F25+F29+F46 -> 8446
D49: （世帯数） | F49: （人口） | G49: （男） | H49: （女）
